bitfinex-derivatives/quotes_ETHF0:USTF0_20250530
["timestamp","ask_amount","ask_price","bid_price","bid_amount"]
[1748631194618,0.77634,2575.7,2575.6,0.77635]
[1748631194813,2.69514,2575.7,2575.6,4.011]
[1748631197210,0.77642,2575.4,2575.3,0.78225456]
[1748631197521,0.77642,2575.4,2575.3,4.79325456]
[1748631197915,0.77638,2575.6,2575.4,0.77639]
[1748631198113,1.354,2575.5,2575.4,0.77639]
[1748631198920,1.354,2575.5,2575.4,4.78739]
[1748631199113,2.13039,2575.5,2575.4,4.78739]
[1748631199517,1.354,2575.5,2575.4,0.77639]
[1748631201121,0.6146,2575.7,2575.6,0.77636]
[1748631201324,1.2654,2575.7,2575.6,0.77636]
[1748631201621,0.6612,2575.8,2575.4,1.94102]
[1748631201622,0.6612,2575.8,2575.7,0.77633]
[1748631201918,0.6612,2575.8,2575.7,4.78733]
[1748631202822,1.2654,2575.9,2575.8,0.7763]
[1748631204023,1.4593,2575.9,2575.8,0.7763]
[1748631204323,0.1939,2575.9,2575.8,0.7763]
[1748631204621,0.1939,2575.9,2575.8,2.0479]
[1748631207025,0.6565,2576.4,2576.3,0.77615]
[1748631207425,1.8969,2576.4,2576.3,0.77615]
[1748631208018,5.1047,2576.4,2576.0,3.2078]
[1748631208219,0.77617,2576.3,2576.2,0.77618]
[1748631208424,2.07147,2576.3,2576.2,0.77618]
[1748631208635,1.2953,2576.3,2576.1,4.78619]
[1748631208828,1.2953,2576.2,2576.1,4.78619]
[1748631210021,1.2953,2576.2,2575.8,3.04165667]
[1748631210227,3.2078,2576.1,2576.0,0.77624]
[1748631210626,3.98401,2576.1,2576.0,0.77624]
[1748631210929,2.07151,2576.1,2576.0,0.77624]
[1748631211534,1.2953,2576.1,2576.0,0.77624]
[1748631215839,3.8643,2576.4,2576.3,0.77615]
[1748631217132,5.0954,2576.4,2576.3,0.77615]
[1748631217441,5.87152,2576.4,2576.3,0.77615]
[1748631217939,5.0954,2576.4,2576.3,0.77615]
[1748631218142,5.87154,2576.4,2576.0,1.94059]
[1748631218343,1.3337,2576.3,2576.2,0.77618]
[1748631219435,2.10985,2576.3,2576.2,0.77618]
[1748631220045,1.3337,2576.3,2576.2,0.77618]
[1748631220343,1.3337,2576.3,2575.9,11.14015]
[1748631220542,3.27408,2576.3,2575.9,3.2078]
[1748631220738,1.3337,2576.3,2576.0,4.005]
[1748631221046,2.05408,2576.2,2576.0,4.78122]
[1748631221239,1.2779,2576.1,2576.0,4.78124]
[1748631221741,0.77615,2576.3,2576.2,0.77615]
[1748631221942,2.05405,2576.3,2576.2,0.77615]
[1748631222237,1.2779,2576.3,2576.1,1.44599]
[1748631222442,0.6565,2576.4,2576.0,4.78123]
[1748631222443,0.77621,2576.1,2576.0,4.78123]
[1748631222642,2.0541,2576.2,2576.0,4.78122]
[1748631222836,0.77621,2576.1,2576.0,4.78122]
[1748631223037,2.05411,2576.1,2576.0,4.78122]
[1748631223237,1.2779,2576.1,2576.0,4.78122]
[1748631225342,1.9686,2576.4,2576.3,0.77615]
[1748631225945,3.2078,2576.5,2576.4,0.77612]
[1748631226147,3.2078,2576.5,2576.4,4.78112]
[1748631229246,4.4931,2576.5,2576.4,4.78112]
[1748631230639,5.26919,2576.5,2576.4,4.78112]
[1748631230836,4.4931,2576.5,2576.4,4.78112]
[1748631232247,5.26919,2576.5,2576.4,4.78112]
[1748631232450,4.4931,2576.5,2576.4,4.78112]
[1748631233846,1.2853,2576.5,2576.4,4.78112]
[1748631235254,2.06139,2576.5,2576.4,4.78112]
[1748631237246,1.2853,2576.5,2576.4,4.78112]
[1748631238650,2.06139,2576.5,2576.4,4.78112]
[1748631239051,1.2853,2576.5,2576.4,4.78112]
[1748631240251,2.06139,2576.5,2576.4,4.78112]
[1748631240554,1.2853,2576.5,2576.4,4.78112]
[1748631240749,1.3397,2576.8,2576.7,0.77603]
[1748631241054,2.6058,2576.8,2576.7,0.77603]
[1748631242256,3.2078,2577.0,2576.9,0.77597]
[1748631242556,5.1496,2577.0,2576.9,4.78097]
[1748631242752,5.92554,2577.0,2576.9,4.78097]
[1748631242956,5.1496,2577.0,2576.9,4.78097]
[1748631243358,5.92554,2577.0,2576.9,4.005]
[1748631243857,5.92554,2577.0,2576.9,4.78097]
[1748631244460,5.92554,2577.0,2576.9,4.005]
[1748631244663,5.92554,2577.0,2576.9,4.78097]
[1748631245061,5.1496,2577.0,2576.9,4.78097]
[1748631247263,5.92554,2577.0,2576.9,4.78097]
[1748631247962,5.92554,2577.0,2576.9,4.005]
[1748631248260,0.776,2576.8,2576.7,0.00582456]
[1748631248664,5.776,2576.8,2576.7,0.00582456]
[1748631248960,6.4477,2576.8,2576.7,0.00582456]
[1748631250356,1.4477,2576.8,2576.7,0.00582456]
[1748631259569,0.77618,2576.2,2576.1,3.984]
[1748631259771,0.77618,2576.2,2576.1,7.982]
[1748631260272,0.77618,2576.2,2576.1,4.7742]
[1748631261464,0.77624,2576.0,2575.9,0.66912456]
[1748631262160,2.07654,2576.0,2575.9,0.66912456]
[1748631264273,0.77636,2575.6,2575.5,3.98418]
[1748631264459,0.77639,2575.5,2575.4,0.6138]
[1748631264664,2.05879,2575.5,2575.4,0.6138]
[1748631266570,2.05879,2575.5,2575.4,1.39022]
[1748631266769,2.05879,2575.5,2575.4,0.6138]
[1748631267966,2.05879,2575.5,2575.4,1.39022]
[1748631271372,0.77639,2575.5,2575.4,1.39022]
[1748631272265,0.77639,2575.5,2575.4,2.71572]
[1748631274273,0.97049,2575.5,2575.4,2.71572]
[1748631274476,0.1941,2575.5,2575.4,2.71572]
[1748631275873,0.97049,2575.5,2575.4,2.71572]
[1748631276175,0.1941,2575.5,2575.4,2.71572]
[1748631276477,0.97049,2575.5,2575.4,2.71572]
[1748631276772,0.1941,2575.5,2575.4,2.71572]
[1748631283178,0.1941,2575.5,2575.4,0.77642]
[1748631283380,0.77642,2575.4,2575.3,0.77645]
[1748631283677,0.77645,2575.3,2575.2,3.21362456]
[1748631283881,0.77645,2575.3,2575.2,0.00582456]
[1748631284277,2.08025,2575.3,2575.2,0.00582456]
[1748631285887,2.08025,2575.3,2575.2,0.78230456]
[1748631286387,1.3038,2575.3,2575.2,0.78230456]
[1748631287891,2.08025,2575.3,2575.2,0.78230456]
[1748631289992,2.08025,2575.3,2575.2,0.00582456]
[1748631290896,0.7766,2574.9,2574.7,0.6751]
[1748631291087,1.4153,2574.8,2574.7,5.44473]
[1748631291290,1.4153,2574.8,2574.7,1.45173]
[1748631291588,1.4153,2574.8,2574.7,5.44473]
[1748631292292,2.683,2574.8,2574.7,5.44473]
[1748631292493,2.8771,2574.8,2574.7,5.44473]
[1748631293196,2.1005,2574.8,2574.7,5.44473]
[1748631294098,2.8771,2574.8,2574.7,5.44473]
[1748631296497,2.8771,2574.8,2574.7,1.45173]
[1748631296796,2.8771,2574.8,2574.7,5.44573]
[1748631299003,2.2384,2574.8,2574.7,5.44573]
[1748631299302,2.2384,2574.8,2574.7,1.45173]
[1748631299501,2.2384,2574.8,2574.7,5.44573]
[1748631299799,1.4618,2574.8,2574.7,5.44573]
[1748631300001,0.1941,2574.8,2574.7,5.44573]
[1748631300901,0.9707,2574.8,2574.7,5.44573]
[1748631301102,0.1941,2574.8,2574.7,5.44573]
[1748631302202,0.9707,2574.8,2574.7,5.44573]
[1748631303103,0.9707,2574.8,2574.7,1.45173]
[1748631303305,0.9707,2574.8,2574.7,5.44573]
[1748631304105,0.9707,2574.8,2574.7,1.45173]
[1748631304301,0.9707,2574.8,2574.7,5.44573]
[1748631304705,0.1941,2574.8,2574.7,5.44573]
[1748631313023,0.00582456,2575.0,2574.7,5.44573]
[1748631313024,0.00582456,2575.0,2574.7,10.44573]
[1748631313319,5.1487,2575.7,2574.9,1.94143]
[1748631313320,3.81681,2575.6,2574.9,1.94143]
[1748631313515,3.1944,2575.5,2574.9,3.25313]
[1748631313722,0.77649,2575.2,2575.1,0.77648]
[1748631313921,0.77649,2575.2,2575.1,4.76248]
[1748631314120,0.77649,2575.2,2575.1,3.986]
[1748631314427,0.77651,2575.1,2575.0,0.77652]
[1748631314630,1.8738,2575.1,2575.0,4.76252]
[1748631315426,2.65031,2575.1,2575.0,3.986]
[1748631315623,7.02292,2575.1,2574.7,7.02765667]
[1748631315927,0.7766,2574.8,2574.7,4.76261]
[1748631317127,0.7766,2574.8,2574.7,3.986]
[1748631317321,0.7766,2574.8,2574.7,4.76263]
[1748631317526,3.8282,2575.1,2574.7,5.92754]
[1748631317826,1.2883,2574.9,2574.8,0.7766]
[1748631318628,1.2883,2574.9,2574.7,4.76262]
[1748631318815,0.7766,2574.8,2574.7,3.986]
[1748631320128,0.7766,2574.8,2574.7,4.76261]
[1748631320824,2.0649,2574.9,2574.8,0.7766]
[1748631321122,3.2078,2575.1,2574.7,3.986]
[1748631321429,0.6485,2575.2,2575.1,0.77651]
[1748631321820,1.9928,2575.2,2575.1,0.77651]
[1748631322323,1.3443,2575.2,2575.1,4.76251]
[1748631323232,0.00582456,2575.4,2575.3,0.77645]
[1748631323824,0.00582456,2575.4,2575.3,4.76245]
[1748631324328,0.00582456,2575.4,2575.0,7.66355667]
[1748631324627,0.7765,2575.2,2575.0,7.02765667]
[1748631324829,0.656,2575.1,2575.0,4.76253]
[1748631325130,1.9543,2575.1,2575.0,4.76253]
[1748631327726,0.77645,2575.3,2575.2,0.77647]
[1748631327929,1.9851,2575.3,2575.2,0.77647]
[1748631328829,1.3312,2575.3,2575.2,0.77647]
[1748631329831,2.10765,2575.3,2575.2,0.77647]
[1748631330131,1.3312,2575.3,2575.2,0.77647]
[1748631331030,0.77648,2575.2,2575.1,0.77649]
[1748631331233,2.10767,2575.3,2575.2,0.77648]
[1748631332626,0.77648,2575.2,2575.1,0.77649]
[1748631332828,2.09818,2575.2,2575.1,0.77649]
[1748631333036,2.73068,2575.2,2575.1,0.77649]
[1748631333330,1.9542,2575.2,2575.1,0.77649]
[1748631333831,2.73068,2575.2,2575.1,0.77649]
[1748631336030,1.9542,2575.2,2575.1,0.77649]
[1748631336822,1.3217,2575.2,2575.1,0.77649]
[1748631337936,0.78226456,2575.4,2575.0,5.92733]
[1748631338132,0.00582456,2575.4,2575.3,0.77645]
[1748631338634,1.22722456,2575.4,2575.3,0.77645]
[1748631339129,2.00364456,2575.4,2575.3,0.77645]
[1748631339326,1.22722456,2575.4,2575.3,0.77645]
[1748631339532,0.77645,2575.3,2575.2,1.42346]
[1748631339731,2.00366456,2575.4,2575.3,0.77645]
[1748631340738,0.77645,2575.3,2575.2,1.42345]
[1748631340938,0.77645,2575.3,2575.2,0.647]
[1748631341332,2.78225,2575.3,2575.2,0.647]
[1748631341532,0.77648,2575.2,2575.1,3.98429]
[1748631341735,1.3444,2575.2,2575.1,3.98429]
[1748631341932,2.12088,2575.2,2575.1,3.98429]
[1748631342536,1.3444,2575.2,2575.1,3.98429]
[1748631342738,2.12088,2575.2,2575.1,3.2078]
[1748631343435,2.12088,2575.2,2575.1,3.98431]
[1748631343833,2.12088,2575.2,2575.1,6.26159386]
[1748631344141,2.12088,2575.2,2575.1,7.03810386]
[1748631344340,2.78658,2575.2,2575.1,7.03810386]
[1748631344538,2.78658,2575.2,2575.1,6.26159386]
[1748631344837,2.78658,2575.2,2575.1,3.2078]
[1748631345041,2.78658,2575.2,2575.1,3.98431]
[1748631345238,2.78658,2575.2,2575.1,3.2078]
[1748631345439,2.78658,2575.2,2575.1,3.98431]
[1748631345640,2.78658,2575.2,2575.1,3.2078]
[1748631346334,0.77651,2575.1,2575.0,7.03979386]
[1748631346536,2.04391,2575.1,2575.0,3.05379386]
[1748631346937,0.77657,2574.9,2574.8,3.05379386]
[1748631347543,4.61557,2574.9,2574.8,3.05379386]
[1748631347843,0.77663,2574.7,2574.6,3.80111473]
[1748631348237,0.77666,2574.6,2574.5,0.00582456]
[1748631348439,5.88856,2574.6,2574.5,0.00582456]
[1748631348741,10.88856,2574.6,2574.5,0.00582456]
[1748631349445,5.88856,2574.6,2574.5,0.00582456]
[1748631353954,0.77678,2574.2,2574.1,3.98461]
[1748631355353,0.77678,2574.2,2574.1,3.2078]
[1748631356253,0.77678,2574.2,2574.1,3.98461]
[1748631356652,0.77678,2574.2,2574.1,3.2078]
[1748631358153,3.2078,2575.3,2574.1,8.2078]
[1748631358362,0.6394,2575.1,2574.6,3.2078]
[1748631358553,0.6394,2575.1,2574.7,4.6514]
[1748631358751,0.6394,2575.1,2574.9,3.98435]
[1748631359051,0.7765,2575.2,2575.0,0.77654]
[1748631359243,0.77651,2575.1,2575.0,2.03344]
[1748631359443,0.77651,2575.1,2575.0,1.2569]
[1748631359639,0.77651,2575.1,2575.0,2.03344]
[1748631360053,1.30392456,2575.4,2575.1,0.77651]
[1748631360253,0.77648,2575.2,2575.0,2.03342]
[1748631360754,0.77647,2575.3,2575.1,0.7765]
[1748631360956,0.77649,2575.2,2575.0,1.2569]
[1748631361254,0.77651,2575.1,2575.0,1.2569]
[1748631361455,0.77651,2575.1,2575.0,2.03344]
[1748631361755,0.7765,2575.2,2575.1,0.77651]
[1748631362154,0.77651,2575.1,2575.0,2.03343]
[1748631362349,0.7765,2575.2,2575.1,0.77651]
[1748631362648,0.77651,2575.1,2575.0,2.03342]
[1748631362854,0.7765,2575.2,2575.1,0.77651]
[1748631363054,0.7765,2575.2,2575.1,0.7765]
[1748631364051,1.3311,2575.3,2575.0,1.2569]
[1748631364357,0.77651,2575.1,2575.0,2.03344]
[1748631364658,0.77651,2575.1,2575.0,1.2569]
[1748631365049,0.77651,2575.1,2575.0,0.77654]
[1748631365479,0.77654,2575.0,2574.9,3.98435]
[1748631365756,0.77653,2575.1,2575.0,0.77654]
[1748631365956,0.77654,2575.0,2574.9,3.98435]
[1748631366458,1.3311,2575.3,2574.9,3.98435]
[1748631366655,1.3311,2575.3,2574.9,3.2078]
[1748631366962,0.77654,2575.0,2574.9,3.98436]
[1748631367148,0.77654,2575.0,2574.9,3.98435]
[1748631367863,1.94075,2575.8,2574.9,8.2078]
[1748631368057,0.77641,2575.5,2575.2,3.2078]
[1748631368253,0.77642,2575.4,2575.3,6.71845]
[1748631368458,0.77642,2575.4,2575.3,5.942]
[1748631368956,1.94101,2575.5,2575.1,0.00582456]
[1748631369162,0.77648,2575.2,2575.1,0.00582456]
[1748631369555,2.00498,2575.2,2575.1,0.00582456]
[1748631370157,1.94128,2575.1,2574.5,3.2078]
[1748631370363,3.2078,2574.9,2574.3,3.80111473]
[1748631370556,0.77667,2574.6,2574.4,0.77671]
[1748631370755,1.9186,2574.8,2574.2,1.987]
[1748631370958,0.77666,2574.6,2574.2,1.987]
[1748631371262,1.9186,2574.8,2574.3,1.3327]
[1748631371462,0.77665,2574.7,2574.5,0.77668]
[1748631371960,2.07145,2574.7,2574.5,0.77668]
[1748631372161,0.77666,2574.6,2574.5,0.77668]
[1748631372669,1.2948,2574.7,2574.3,1.3327]
[1748631372965,2.07145,2574.7,2574.5,0.77668]
[1748631373565,1.2948,2574.7,2574.6,0.77666]
[1748631373762,2.07144,2574.7,2574.5,0.77666]
[1748631374655,2.07143,2574.7,2574.6,0.77666]
[1748631374860,0.6238,2574.8,2574.3,3.27455]
[1748631375063,3.2078,2574.9,2574.3,3.91905]
[1748631375258,3.2078,2574.9,2574.7,0.77662]
[1748631375565,3.98439,2574.9,2574.7,0.77663]
[1748631375773,3.98439,2574.9,2574.8,0.7766]
[1748631376068,3.2078,2574.9,2574.4,5.91079]
[1748631376268,0.77661,2574.8,2574.6,0.77663]
[1748631376466,0.77663,2574.7,2574.5,2.02207]
[1748631376659,0.77663,2574.7,2574.6,0.77666]
[1748631376970,0.77659,2574.9,2574.7,0.7766]
[1748631377271,0.77663,2574.7,2574.6,0.6105]
[1748631377474,0.77663,2574.7,2574.6,1.38716]
[1748631378271,1.42923,2574.7,2574.6,1.38716]
[1748631378473,1.42923,2574.7,2574.6,0.6105]
[1748631378971,0.77671,2574.5,2574.3,1.42123]
[1748631379269,0.77671,2574.5,2574.3,4.74573]
[1748631379469,0.77671,2574.5,2574.4,0.77672]
[1748631379772,2.06498,2574.6,2574.5,0.77669]
[1748631380069,0.7767,2574.5,2574.4,0.7767]
[1748631380266,2.06498,2574.6,2574.5,0.77669]
[1748631380665,1.2883,2574.6,2574.5,0.77669]
[1748631380867,5.31164,2574.7,2574.6,0.77666]
[1748631381069,3.2078,2574.7,2574.6,0.77666]
[1748631381767,0.6402,2574.9,2574.8,0.7766]
[1748631382368,0.6402,2574.9,2574.7,5.95391]
[1748631382571,0.7766,2574.8,2574.7,0.6509]
[1748631382766,2.61583,2575.2,2574.7,0.6509]
[1748631382767,3.2078,2575.4,2574.8,1.94151]
[1748631382971,0.7764,2575.5,2575.3,0.77644]
[1748631383378,0.7764,2575.5,2575.4,0.77642]
[1748631383579,0.78219456,2575.6,2575.4,0.77642]
[1748631383877,0.00582456,2575.6,2575.2,1.9695]
[1748631384068,0.00582456,2575.6,2575.5,0.77639]
[1748631388375,0.78218456,2575.6,2575.4,0.77639]
[1748631388583,0.00582456,2575.6,2575.5,0.77639]
[1748631388773,3.2078,2576.2,2575.5,1.94098]
[1748631388979,0.77624,2576.0,2575.9,0.77626]
[1748631389281,0.77623,2576.1,2575.9,0.77626]
[1748631389471,3.8335,2576.5,2576.0,1.3309]
[1748631389782,4.61542456,2576.5,2576.3,0.77613]
[1748631389982,4.61542456,2576.5,2576.4,1.3309]
[1748631390975,4.61542456,2576.5,2576.4,2.10702]
[1748631391283,0.63152456,2576.5,2576.4,2.10702]
[1748631392979,0.00582456,2576.5,2576.4,2.10702]
[1748631393679,3.2078,2577.9,2576.6,1.94009]
[1748631393983,0.77582,2577.4,2577.3,3.2078]
[1748631394375,2.5715,2577.8,2577.3,3.2078]
[1748631394572,2.5715,2577.8,2577.3,3.98365]
[1748631394876,2.57732456,2577.8,2577.3,3.21362456]
[1748631395072,0.77573,2577.7,2577.4,2.05331]
[1748631395277,0.77576,2577.6,2577.4,2.05331]
[1748631395482,1.3237,2577.7,2577.4,1.2775]
[1748631395681,1.3237,2577.7,2577.4,2.05329]
[1748631396085,1.3237,2577.7,2577.5,0.77578]
[1748631396382,2.09944,2577.7,2577.5,0.77578]
[1748631397176,1.3237,2577.7,2577.6,0.77576]
[1748631397377,2.09943,2577.7,2577.6,0.77576]
[1748631397577,1.3237,2577.7,2577.6,0.77576]
[1748631397772,2.09943,2577.7,2577.6,0.77576]
[1748631397978,2.09943,2577.7,2577.4,1.2775]
[1748631398185,1.3237,2577.7,2577.4,2.0533]
[1748631398379,0.77579,2577.6,2577.5,0.77579]
[1748631398882,1.3237,2577.7,2577.5,0.77579]
[1748631399084,0.77576,2577.6,2577.5,0.77577]
[1748631399284,0.77577,2577.6,2577.5,0.77576]
[1748631399587,2.09943,2577.7,2577.6,0.77576]
[1748631399788,0.77573,2577.7,2577.6,0.77576]
[1748631399982,0.77573,2577.7,2577.6,3.98355]
[1748631400182,1.29562456,2577.8,2577.6,3.98355]
[1748631400383,0.77573,2577.7,2577.6,3.2078]
[1748631401881,2.00823,2577.7,2577.6,3.2078]
[1748631402990,0.77576,2577.6,2577.5,3.98358]
[1748631403183,0.77576,2577.6,2577.5,3.2078]
[1748631403987,0.77576,2577.6,2577.5,4.4621]
[1748631404291,0.77576,2577.6,2577.5,5.23789]
[1748631405083,0.77576,2577.6,2577.5,3.2078]
[1748631405291,0.77582,2577.4,2577.3,0.00582456]
[1748631407990,0.77578,2577.6,2577.5,0.77578]
[1748631408187,0.77575,2577.7,2577.6,0.77574]
[1748631408388,0.78154456,2577.8,2577.7,0.77573]
[1748631409590,0.77573,2577.7,2577.6,0.77573]
[1748631409790,0.78155456,2577.8,2577.6,0.77576]
[1748631410091,0.77573,2577.7,2577.6,0.77576]
[1748631410889,0.00582456,2577.8,2577.5,3.98358]
[1748631411196,0.77574,2577.7,2577.5,3.2078]
[1748631411397,0.77574,2577.7,2577.6,0.77576]
[1748631411792,0.00582456,2577.8,2577.5,3.2078]
[1748631411992,0.77574,2577.7,2577.6,0.77575]
[1748631412191,0.00582456,2577.8,2577.5,3.98357]
[1748631412391,0.77576,2577.6,2577.5,3.98357]
[1748631413690,0.77576,2577.6,2577.5,3.2078]
[1748631419598,2.05156,2577.7,2577.5,3.2078]
[1748631419799,0.77576,2577.6,2577.5,3.2078]
[1748631422604,0.77582,2577.4,2577.3,0.00582456]
[1748631423494,1.42432,2577.4,2577.3,0.00582456]
[1748631424703,2.72172,2577.4,2577.3,0.00582456]
[1748631425298,1.42432,2577.4,2577.3,0.00582456]
[1748631425700,1.42432,2577.4,2577.3,1.31332456]
[1748631425902,1.42432,2577.4,2577.3,2.08917456]
[1748631426604,1.42432,2577.4,2577.3,2.72997456]
[1748631426806,0.77582,2577.4,2577.3,2.72997456]
[1748631427105,0.77582,2577.5,2577.4,0.77579]
[1748631427401,0.77582,2577.5,2577.4,1.3075]
[1748631428009,0.77582,2577.4,2577.3,0.00582456]
[1748631428206,2.10142,2577.4,2577.3,0.00582456]
[1748631430307,0.77582,2577.4,2577.3,0.00582456]
[1748631430507,0.77582,2577.4,2577.3,1.24222456]
[1748631431607,0.77582,2577.4,2577.3,0.00582456]
[1748631432513,0.77603,2576.7,2576.6,3.98383]
[1748631432809,3.21362456,2577.8,2576.7,1.94006]
[1748631433108,0.77586,2577.3,2577.2,3.98368]
[1748631433407,0.77586,2577.3,2577.2,0.77588]
[1748631433910,0.77588,2577.2,2577.1,1.3063]
[1748631434104,0.77587,2577.3,2577.2,0.77587]
[1748631435117,0.77585,2577.3,2577.2,0.77586]
[1748631435407,4.5845,2577.5,2577.2,3.98366]
[1748631435609,4.5845,2577.5,2577.2,3.2078]
[1748631435921,0.77582,2577.4,2577.3,1.9202]
[1748631437906,0.77582,2577.4,2577.3,2.69605]
[1748631438308,0.77585,2577.3,2577.2,3.2078]
[1748631438609,1.41425,2577.3,2577.2,3.2078]
[1748631438820,0.00582456,2577.8,2577.7,0.77573]
[1748631439015,0.77565,2578.0,2577.9,0.77567]
[1748631439318,0.7756,2578.2,2578.0,0.77562]
[1748631439505,0.7756,2578.2,2578.1,0.77561]
[1748631439711,0.77561,2578.1,2578.0,2.78861]
[1748631439909,0.77561,2578.1,2578.0,2.013]
[1748631440611,0.7756,2578.2,2578.1,0.77561]
[1748631440812,5.35258456,2578.3,2578.2,0.77558]
[1748631441012,4.57702456,2578.3,2578.0,2.013]
[1748631441404,0.77561,2578.1,2578.0,2.78863]
[1748631441605,0.77561,2578.1,2578.0,2.013]
[1748631442001,0.77564,2578.0,2577.9,3.2078]
[1748631442205,0.77567,2577.9,2577.8,0.77569]
[1748631442414,0.77567,2577.9,2577.8,3.98349]
[1748631443315,0.7757,2577.8,2577.7,1.9539]
[1748631443514,0.77576,2577.6,2577.5,3.2078]
[1748631443710,0.77576,2577.6,2577.5,3.98357]
[1748631444015,0.6467,2577.7,2577.5,3.2078]
[1748631444317,1.42244,2577.7,2577.6,0.77576]
[1748631444616,0.77576,2577.6,2577.5,3.98357]
[1748631446416,1.42245,2577.7,2577.5,3.98357]
[1748631446915,1.42245,2577.7,2577.6,1.226]
[1748631447519,1.42245,2577.7,2577.6,2.00176]
[1748631447911,1.42245,2577.7,2577.6,1.226]
[1748631448811,5.8962,2577.9,2577.6,1.226]
[1748631449011,0.77573,2577.7,2577.6,1.226]
[1748631450221,0.77572,2577.8,2577.6,1.226]
[1748631450411,0.6758,2578.1,2577.8,0.77568]
[1748631450719,0.77566,2578.0,2577.9,4.4613]
[1748631452813,0.77566,2578.0,2577.9,5.23697]
[1748631453019,0.77563,2578.1,2578.0,0.77561]
[1748631453220,0.77563,2578.1,2578.0,2.11051]
[1748631453421,0.77563,2578.1,2578.0,1.3349]
[1748631455016,3.21362456,2578.3,2578.0,1.3349]
[1748631455320,0.77559,2578.2,2578.1,0.77558]
[1748631455526,0.77559,2578.2,2578.1,1.44208]
[1748631456217,0.77559,2578.2,2578.1,0.6665]
[1748631456526,0.77559,2578.2,2578.1,1.44211]
[1748631456823,0.77559,2578.2,2578.1,2.70331]
[1748631457124,0.77559,2578.2,2578.1,0.6665]
[1748631457716,0.77559,2578.2,2578.1,1.9277]
[1748631459223,0.00582456,2578.3,2578.2,0.77558]
[1748631459517,0.78137456,2578.3,2578.2,4.5213]
[1748631459923,0.00582456,2578.3,2578.2,5.29688]
[1748631460415,0.78137456,2578.3,2578.2,4.5213]
[1748631461323,0.00582456,2578.3,2578.2,5.29688]
[1748631463119,0.77547,2578.6,2578.5,0.77547]
[1748631463425,0.77537,2578.9,2578.8,0.7754]
[1748631463820,5.8004,2579.2,2578.7,0.77543]
[1748631464028,0.7754,2578.9,2578.8,2.00578]
[1748631464322,0.7754,2578.9,2578.8,1.2304]
[1748631465421,0.77533,2579.1,2578.8,1.2304]
[1748631465621,0.77531,2579.1,2578.9,0.77534]
[1748631465825,0.77531,2579.1,2579.0,1.2304]
[1748631466018,0.77529,2579.2,2579.1,0.77531]
[1748631466222,0.36936178,2579.3,2579.1,3.98308]
[1748631466531,1.14461178,2579.3,2579.2,1.2304]
[1748631467525,0.36936178,2579.3,2579.2,2.00568]
[1748631467725,1.14461178,2579.3,2579.2,2.00568]
[1748631467929,1.14461178,2579.3,2579.2,1.2304]
[1748631468130,1.14461178,2579.3,2579.2,2.00568]
[1748631468329,1.14461178,2579.3,2579.2,1.2304]
[1748631469825,0.77528,2579.2,2579.1,3.2078]
[1748631470025,0.77537,2578.9,2578.8,3.2078]
[1748631470927,0.77536,2579.0,2578.8,3.2078]
[1748631471125,0.77536,2579.0,2578.9,1.2659]
[1748631471731,0.77536,2579.0,2578.9,2.04127]
[1748631471931,0.77536,2579.0,2578.9,1.2659]
[1748631472431,0.77537,2578.9,2578.8,3.2078]
[1748631473225,0.77537,2578.9,2578.8,3.9832]
[1748631473428,0.77537,2578.9,2578.8,3.2078]
[1748631474825,1.43327,2578.9,2578.8,3.2078]
[1748631475131,1.43327,2578.9,2578.6,1.27172456]
[1748631475132,0.77543,2578.7,2578.6,0.00582456]
[1748631476033,1.41673,2578.7,2578.6,0.00582456]
[1748631476635,1.41673,2578.7,2578.6,0.78128456]
[1748631476827,1.41673,2578.7,2578.6,0.00582456]
[1748631477028,0.77543,2578.7,2578.6,0.78128456]
[1748631478232,0.77543,2578.7,2578.6,0.78126456]
[1748631478532,0.77543,2578.7,2578.6,0.78128456]
[1748631479337,0.77541,2578.8,2578.7,0.7754]
[1748631479530,0.77541,2578.8,2578.7,2.0505]
[1748631479834,0.77541,2578.8,2578.7,5.2583]
[1748631480332,0.77541,2578.8,2578.7,5.9222]
[1748631480733,2.05649,2578.9,2578.8,0.7754]
[1748631480936,1.40129,2578.9,2578.8,2.0505]
[1748631482234,0.77539,2578.9,2578.8,1.2751]
[1748631482437,0.7754,2578.8,2578.7,3.8717]
[1748631482734,0.7754,2578.8,2578.7,5.1913]
[1748631483940,0.7754,2578.8,2578.7,1.9835]
[1748631484246,0.7754,2578.8,2578.7,5.1913]
[1748631485438,8.953,2578.8,2578.1,3.2078]
[1748631485632,1.93902,2578.1,2577.4,0.6196]
[1748631485833,3.98354,2577.7,2577.4,0.6196]
[1748631486033,3.98354,2577.7,2577.5,5.81317881]
[1748631486333,0.77576,2577.6,2577.5,3.81731881]
[1748631486737,2.00856,2577.6,2577.5,3.81731881]
[1748631486937,2.00856,2577.6,2577.3,0.00582456]
[1748631486938,1.2328,2577.6,2577.3,0.78164456]
[1748631487142,3.98362,2577.4,2577.3,0.00582456]
[1748631487639,0.7758,2577.5,2577.3,0.78165456]
[1748631487840,1.2328,2577.6,2577.3,0.78165456]
[1748631488141,0.77581,2577.5,2577.3,0.78165456]
[1748631488543,0.77582,2577.4,2577.3,0.00582456]
[1748631488741,0.77582,2577.4,2577.3,0.78167456]
[1748631489241,0.77582,2577.4,2577.3,0.00582456]
[1748631489439,0.77582,2577.4,2577.3,1.24792456]
[1748631489638,3.98362,2577.4,2577.3,0.00582456]
[1748631489840,0.77603,2576.7,2576.6,3.2078]